bitfinex/quotes_SOLUSD_20240920
["timestamp","ask_amount","ask_price","bid_price","bid_amount"]
[1726826625635,6.73789,151.23,151.22,0.0836532]
[1726826631739,16.5243,151.3,151.22,0.0836532]
[1726826632037,6.6108,151.27,151.23,6.6124]
[1726826632921,0.25098,151.26,151.23,6.6124]
[1726826633134,6.86208,151.26,151.23,6.6124]
[1726826633340,6.86208,151.26,151.22,23.2283532]
[1726826634241,6.6116,151.25,151.22,23.2283532]
[1726826634423,0.25098,151.26,151.23,6.6121]
[1726826634625,0.12549,151.26,151.23,6.6121]
[1726826635513,6.73659,151.26,151.22,23.2283532]
[1726826636829,6.73659,151.26,151.23,21.8131]
[1726826639346,6.6111,151.26,151.23,28.4254]
[1726826639530,6.6108,151.27,151.23,28.4254]
[1726826640345,6.6112,151.26,151.23,21.8131]
[1726826642431,6.6108,151.27,151.23,28.4254]
[1726826644639,6.6111,151.26,151.23,28.4254]
[1726826644837,6.6116,151.25,151.23,21.8131]
[1726826645045,6.612,151.24,151.23,6.3484]
[1726826645336,6.73789,151.23,151.22,0.0836532]
[1726826645538,6.86338,151.23,151.22,0.0836532]
[1726826647751,40.301784,151.29,151.22,0.0836532]
[1726826647949,16.5249,151.29,151.22,0.0836532]
[1726826649363,6.6112,151.26,151.22,6.6964532]
[1726826651258,6.6116,151.25,151.22,0.0836532]
[1726826652555,6.73589,151.28,151.24,6.6119]
[1726826652949,6.6104,151.28,151.24,6.6119]
[1726826653766,6.6104,151.28,151.25,21.8688]
[1726826654860,6.6111,151.26,151.25,21.8688]
[1726826655248,6.86178,151.27,151.25,21.8688]
[1726826655649,6.6103,151.28,151.25,21.8688]
[1726826656861,0.175803,151.33,151.25,35.31663594]
[1726826657053,0.175803,151.33,151.26,16.5271]
[1726826657260,0.175803,151.33,151.25,21.8688]
[1726826657466,6.6102,151.28,151.25,21.8688]
[1726826657861,6.6107,151.27,151.25,21.8688]
[1726826658166,6.6111,151.26,151.25,21.8688]
[1726826658468,6.6108,151.27,151.25,21.8688]
[1726826664677,6.73579,151.28,151.25,21.8688]
[1726826666964,0.12549,151.27,151.25,21.8688]
[1726826667165,0.25098,151.27,151.25,21.8688]
[1726826667374,0.12549,151.27,151.25,21.8688]
[1726826667872,6.6111,151.26,151.25,21.8688]
[1726826668572,6.6123,151.24,151.22,0.0836532]
[1726826668764,6.6121,151.24,151.22,0.0836532]
[1726826669987,6.6124,151.23,151.22,0.0836532]
[1726826671157,6.6121,151.24,151.22,0.0836532]
[1726826673678,6.86338,151.23,151.22,0.0836532]
[1726826679083,6.73789,151.23,151.22,0.0836532]
[1726826682385,6.6121,151.24,151.22,0.0836532]
[1726826685669,6.6124,151.23,151.22,0.0836532]
[1726826685869,6.73789,151.23,151.22,0.0836532]
[1726826688277,6.86338,151.23,151.22,0.0836532]
[1726826689501,6.98887,151.23,151.22,0.0836532]
[1726826703379,30.765754,151.23,151.22,0.0836532]
[1726826703584,0.37647,151.17,151.16,0.4393183]
[1726826703783,30.768354,151.17,151.16,0.4393183]
[1726826703990,30.768354,151.17,151.07,16.9871183]
[1726826703991,6.86778,151.13,151.09,22.7464]
[1726826704589,30.770154,151.13,151.09,22.7464]
[1726826706099,13.29140628,151.13,151.09,22.7464]
[1726826706481,16.5406,151.15,151.09,22.7464]
[1726826707301,6.6168,151.13,151.09,22.7464]
[1726826708004,16.5406,151.15,151.07,0.4393183]
[1726826708184,6.6185,151.09,151.07,0.4393183]
[1726826708388,6.74449,151.08,151.07,0.4393183]
[1726826708791,6.99547,151.08,151.07,0.4393183]
[1726826710920,30.772354,151.08,151.07,0.4393183]
[1726826711391,6.87168,151.04,151.03,0.2594562]
[1726826711718,6.99717,151.04,151.03,0.2594562]
[1726826711891,0.12549,151.04,151.03,0.2594562]
[1726826712306,0.25098,151.08,151.03,0.2594562]
[1726826712489,6.74489,151.07,151.03,6.8805562]
[1726826712907,0.12549,151.07,151.03,6.8805562]
[1726826713109,0.12549,151.07,151.02,28.7406]
[1726826713110,6.6195,151.07,151.02,28.7406]
[1726826713295,6.6195,151.07,151.03,0.0930632]
[1726826714107,16.5436,151.12,151.03,6.7138632]
[1726826714305,0.12549,151.09,151.04,6.6205]
[1726826714508,0.12549,151.09,151.03,0.0930632]
[1726826714509,6.6189,151.09,151.05,6.6202]
[1726826714707,6.6182,151.1,151.05,6.6202]
[1726826715011,6.6182,151.1,151.06,6.6197]
[1726826715399,6.6182,151.1,151.05,6.6202]
[1726826715799,0.12549,151.09,151.05,6.6202]
[1726826716611,6.6195,151.07,151.03,16.6452632]
[1726826716999,6.74409,151.09,151.04,7.94461703]
[1726826717202,6.74409,151.09,151.04,6.6206]
[1726826717708,6.74409,151.09,151.05,6.6202]
[1726826717909,0.12549,151.09,151.03,16.6452632]
[1726826718095,0.12549,151.09,151.04,1.32383232]
[1726826718297,0.12549,151.1,151.06,6.6195]
[1726826718507,6.6177,151.11,151.07,6.6193]
[1726826718688,6.6177,151.11,151.06,6.6197]
[1726826721495,0.12549,151.1,151.05,16.5499]
[1726826721812,0.12549,151.11,151.05,16.5499]
[1726826722004,0.12549,151.1,151.05,16.5499]
[1726826722204,6.74329,151.11,151.06,6.6195]
[1726826722806,0.12549,151.09,151.05,16.5499]
[1726826723013,0.12549,151.09,151.05,23.1702]
[1726826723311,6.74389,151.1,151.05,23.1702]
[1726826725110,6.6186,151.09,151.05,23.1702]
[1726826728424,6.6186,151.09,151.05,23.2632632]
[1726826728602,6.74449,151.08,151.05,16.6429632]
[1726826730129,0.12549,151.06,151.05,0.0930632]
[1726826730416,6.74529,151.06,151.05,0.0930632]
[1726826731920,6.6195,151.07,151.05,0.0930632]
[1726826733005,6.74529,151.06,151.05,0.0930632]
[1726826733327,6.6197,151.07,151.05,0.0930632]
[1726826733526,0.12549,151.09,151.05,0.0930632]
[1726826733825,7.4791,151.17,151.05,0.0930632]
[1726826733826,6.74529,151.06,151.05,0.0930632]
[1726826734229,6.6191,151.08,151.05,0.0930632]
[1726826735122,6.74409,151.09,151.05,6.7131632]
[1726826735315,6.86998,151.08,151.05,0.0930632]
[1726826737234,6.6195,151.07,151.05,0.0930632]
[1726826738228,6.87008,151.08,151.05,0.0930632]
[1726826738410,6.6184,151.1,151.06,6.6197]
[1726826740045,0.37647,151.09,151.05,16.6434632]
[1726826740216,6.619,151.08,151.05,16.6434632]
[1726826741020,16.5405,151.15,151.07,16.5479]
[1726826741423,16.5405,151.15,151.08,6.3926]
[1726826742432,6.618,151.11,151.08,6.3926]
[1726826745621,0.12549,151.11,151.08,6.3926]
[1726826745925,24.027864,151.14,151.08,6.3926]
[1726826746526,6.6185,151.09,151.08,6.3926]
[1726826746935,0.25098,151.12,151.08,6.3926]
[1726826747131,6.6175,151.12,151.08,13.0112]
[1726826747337,6.6172,151.12,151.08,29.5584]
[1726826748451,6.6169,151.13,151.09,6.6184]
[1726826748827,0.12549,151.12,151.09,6.6184]
[1726826749227,6.74269,151.12,151.08,29.5584]
[1726826750427,6.6184,151.1,151.08,6.3926]
[1726826750622,0.12549,151.1,151.08,6.3926]
[1726826750943,0.37647,151.13,151.08,6.3926]
[1726826751645,6.6177,151.11,151.08,6.3926]
[1726826752327,6.6174,151.12,151.08,13.0115]
[1726826753935,6.6177,151.11,151.08,13.0115]
[1726826754840,6.6174,151.12,151.08,13.0115]
[1726826755347,0.12549,151.11,151.08,13.0115]
[1726826755743,6.6175,151.12,151.08,13.0115]
[1726826755948,0.37647,151.14,151.08,6.3926]
[1726826756254,6.6177,151.11,151.08,6.3926]
[1726826758155,6.6174,151.12,151.08,13.0116]
[1726826758332,0.12549,151.13,151.09,6.6185]
[1726826758839,0.12549,151.13,151.08,6.3926]
[1726826758840,0.12549,151.12,151.08,13.0114]
[1726826759162,6.618,151.11,151.08,6.3926]
[1726826761050,6.74279,151.12,151.08,13.0115]
[1726826761444,0.12549,151.11,151.08,13.0115]
[1726826761957,6.616,151.15,151.11,6.6175]
[1726826762173,7.89567616,151.22,151.14,6.4027]
[1726826762339,6.74279,151.22,151.15,16.5394]
[1726826762665,0.3130463,151.23,151.18,6.6142]
[1726826762961,6.6133,151.21,151.17,16.5373]
[1726826763335,0.3130463,151.23,151.16,6.6154]
[1726826763336,0.3130463,151.23,151.16,13.44783594]
[1726826763534,0.3130463,151.23,151.22,6.6128]
[1726826763735,0.3130463,151.23,151.21,29.5024]
[1726826764142,0.3130463,151.23,151.21,22.8892]
[1726826764447,0.3130463,151.23,151.21,29.5024]
[1726826764647,0.3130463,151.23,151.21,22.8892]
[1726826765457,0.3130463,151.23,151.21,6.3565]
[1726826772863,6.73829,151.22,151.21,6.3565]
[1726826773072,0.3130463,151.23,151.21,6.3565]
[1726826773559,0.12549,151.22,151.21,6.3565]
[1726826773741,6.73869,151.22,151.2,15.5912]
[1726826773944,7.0127764,151.22,151.2,15.5912]
[1726826778975,0.3995764,151.22,151.2,15.5912]
[1726826780053,0.2740864,151.22,151.2,15.5912]
[1726826781866,0.2740864,151.22,151.21,6.6133]
[1726826786679,0.2740864,151.22,151.21,47.72795835]
[1726826786974,0.2591986,151.24,151.23,23.1435]
[1726826789966,0.2591986,151.24,151.23,16.5311]
[1726826790572,0.2591986,151.24,151.23,23.1435]
[1726826795882,0.2591986,151.24,151.23,36.59133594]
[1726826799193,0.2591986,151.24,151.23,23.1435]
[1726826803288,0.2591986,151.24,151.21,26.3444]
[1726826803465,0.2591986,151.24,151.21,12.9577]
[1726826804373,6.6128,151.22,151.21,6.3444]
[1726826804698,6.6137,151.2,151.17,6.2015]
[1726826804866,0.12549,151.22,151.16,15.688]
[1726826805072,6.6147,151.18,151.14,23.1564]
[1726826805881,6.6142,151.19,151.14,23.1564]
[1726826806091,0.12549,151.18,151.14,23.1564]
[1726826806691,6.73929,151.2,151.15,6.6156]
[1726826806875,6.73929,151.2,151.14,16.5401]
[1726826807782,0.12549,151.22,151.14,16.5401]
[1726826807783,6.6133,151.21,151.14,29.98793594]
[1726826808984,6.6133,151.21,151.16,6.6154]
[1726826809572,6.86338,151.23,151.18,6.6142]
[1726826809797,6.86368,151.23,151.18,23.15]
[1726826810292,0.2591986,151.24,151.18,16.5355]
[1726826810584,0.2591986,151.24,151.23,6.6124]
[1726826810997,0.2591986,151.24,151.22,36.59193594]
[1726826811668,0.2591986,151.24,151.23,6.6124]
[1726826818607,0.2591986,151.24,151.22,23.144]
[1726826820113,0.2591986,151.24,151.23,6.6124]
[1726826820893,0.2591986,151.24,151.22,23.1439]
[1726826821097,0.2591986,151.24,151.22,16.5313]
[1726826823807,0.2591986,151.24,151.23,1.32234241]
[1726826824316,0.2591986,151.24,151.23,7.93474241]
[1726826824615,0.2591986,151.24,151.23,6.6124]
[1726826829924,0.2591986,151.24,151.23,26.6124]
[1726826831916,0.2591986,151.24,151.23,40.05526616]
[1726826835003,0.2591986,151.24,151.23,65.15407055]
[1726826835202,0.2591986,151.24,151.23,63.83215016]
[1726826835416,0.4390607,151.3,151.29,6.6098]
[1726826839324,0.4390607,151.3,151.27,13.44286616]
[1726826839325,0.4390607,151.3,151.27,6.6106]
[1726826840611,0.4390607,151.3,151.28,7.9321045]
[1726826840813,0.4390607,151.3,151.29,6.6098]
[1726826841325,0.4390607,151.3,151.28,6.6101]
[1726826842029,0.4390607,151.3,151.29,6.6098]
[1726826843603,0.4390607,151.3,151.29,20.05266616]
[1726826844217,0.4390607,151.3,151.29,85.66065016]
[1726826844527,0.4390607,151.3,151.29,28.4409]
[1726826845229,0.4390607,151.3,151.29,12.6689]
[1726826845405,0.4390607,151.3,151.29,6.6098]
[1726826846833,0.4390607,151.3,151.28,6.6101]
[1726826848134,0.4390607,151.3,151.27,23.1365]
[1726826849133,0.4390607,151.3,151.29,6.6098]
[1726826849314,0.4390607,151.3,151.29,20.05266616]
[1726826851933,0.4390607,151.3,151.29,6.6098]
[1726826857247,0.4390607,151.3,151.29,30.386684]
[1726826859755,0.4390607,151.3,151.29,50.386684]
[1726826861533,0.4390607,151.3,151.29,51.70804345]
[1726826863866,0.4390607,151.3,151.29,50.386684]
[1726826865348,0.4390607,151.3,151.29,51.70802348]
[1726826865553,0.2591986,151.33,151.32,43.1297]
[1726826865730,0.2591986,151.33,151.32,44.4508164]
[1726826866941,0.2591986,151.33,151.32,43.1297]
[1726826867632,0.2591986,151.33,151.32,66.906584]
[1726826868344,0.2591986,151.33,151.32,43.1297]
[1726826869153,0.2591986,151.33,151.31,6.6087]
[1726826871359,5.8664986,151.35,151.31,6.6087]
[1726826872836,6.6077,151.34,151.3,6.6093]
[1726826877542,6.6081,151.33,151.29,23.1332]
[1726826880062,0.37647,151.37,151.3,1.32154161]
[1726826880236,6.6081,151.33,151.31,1.32157932]
[1726826881165,6.6077,151.34,151.31,1.32157932]
[1726826881461,6.6073,151.35,151.31,6.6088]
[1726826881650,6.6076,151.34,151.3,6.6092]
[1726826882248,6.6081,151.33,151.29,23.133]
[1726826882741,6.6085,151.32,151.29,16.5235]
[1726826885967,6.6082,151.33,151.29,23.1332]
[1726826886771,6.6108,151.27,151.22,28.3452986]
[1726826886979,6.6108,151.27,151.23,6.6123]
[1726826887262,6.6108,151.27,151.22,21.7327986]
[1726826887470,6.6108,151.27,151.22,28.3454986]
[1726826889256,6.6111,151.26,151.22,28.3454986]
[1726826890161,0.12549,151.26,151.22,0.2591986]
[1726826890358,6.98887,151.23,151.22,0.2591986]
[1726826890978,6.6144,151.19,151.17,0.2591986]
[1726826891168,6.6146,151.18,151.17,0.2591986]
[1726826891549,6.74009,151.18,151.17,0.2591986]
[1726826891955,6.74009,151.18,151.12,6.6168]
[1726826892158,6.74009,151.18,151.17,0.2489182]
[1726826894078,6.99107,151.18,151.17,0.2489182]
[1726826894461,49.6047,151.2,151.13,0.2606602]
[1726826894462,6.616,151.15,151.13,0.2606602]
[1726826894957,0.12549,151.16,151.13,0.2606602]
[1726826896380,6.6163,151.14,151.13,0.2606602]
[1726826896569,6.99277,151.14,151.13,0.2606602]
[1726826898158,30.769654,151.14,151.13,0.2606602]
[1726826898478,38.687754,151.14,151.13,0.2606602]
[1726826899381,30.769654,151.14,151.13,0.2606602]
[1726826899689,6.99277,151.14,151.13,0.2606602]
[1726826900384,30.769654,151.14,151.13,0.2606602]
[1726826903365,6.74179,151.14,151.13,0.2606602]
[1726826904070,6.6163,151.14,151.13,0.2606602]
[1726826904889,6.86728,151.14,151.13,0.2606602]
[1726826905480,6.99277,151.14,151.13,0.2606602]
[1726826909984,30.769654,151.14,151.13,0.2606602]
[1726826915105,6.99277,151.14,151.13,0.2606602]
[1726826921288,6.86728,151.14,151.13,0.2606602]
[1726826921492,6.74179,151.14,151.13,0.2606602]
[1726826922684,6.99277,151.14,151.13,0.2606602]
[1726826925505,6.74179,151.14,151.13,0.2606602]
[1726826927697,0.12549,151.14,151.13,0.2606602]
[1726826928127,0.25098,151.18,151.13,0.2606602]
[1726826928417,6.6141,151.2,151.14,24.24995014]
[1726826928631,24.4479,151.25,151.15,1.32297518]
[1726826928919,31.32612774,151.25,151.15,1.32297518]
[1726826929706,31.32612774,151.25,151.14,16.3108]
[1726826929707,20.0,151.24,151.14,16.3108]
[1726826930530,6.6133,151.21,151.15,6.6158]
[1726826930818,0.37647,151.2,151.15,6.6158]
[1726826931412,6.99027,151.2,151.14,22.927]
[1726826931905,6.6142,151.19,151.14,22.927]
[1726826933016,0.37647,151.2,151.14,16.3108]
[1726826933319,0.12549,151.18,151.14,22.9271]
[1726826936125,0.25098,151.2,151.14,22.9271]
[1726826936309,0.25098,151.2,151.16,6.6154]
[1726826936507,0.25098,151.2,151.17,1.32284388]
[1726826937133,0.25098,151.2,151.15,23.1553]
[1726826937134,6.86468,151.2,151.15,23.1553]
[1726826940534,6.6149,151.18,151.14,16.3108]
[1726826940825,6.6152,151.17,151.14,16.3108]
[1726826941209,0.12549,151.17,151.14,16.3108]
[1726826945030,6.74059,151.17,151.14,16.3108]
[1726826948506,6.6159,151.15,151.14,16.3108]
[1726826948713,0.12549,151.15,151.13,0.2606602]
[1726826949515,30.769654,151.14,151.13,0.2606602]
[1726826950609,30.5655851,151.14,151.13,0.2606602]
[1726826953627,6.99357,151.13,151.11,0.2590624]
[1726826953940,6.99367,151.12,151.11,0.3836246]
[1726826955111,6.99547,151.08,151.07,0.1798621]
[1726826955524,0.37647,151.08,151.07,0.1798621]
[1726826955924,0.12549,151.08,151.07,0.1798621]
[1726826956519,0.37647,151.08,151.07,0.1798621]
[1726826957419,6.99547,151.08,151.07,0.1798621]
[1726826960645,30.772354,151.08,151.07,0.1798621]
[1726826963824,0.37647,151.08,151.07,0.1798621]
[1726826964016,31.38003278,151.15,151.07,0.1798621]
[1726826964218,6.6178,151.11,151.07,0.1798621]
[1726826964521,24.4587,151.15,151.07,6.7992621]
[1726826964522,6.6173,151.12,151.07,6.7992621]
[1726826964836,6.6169,151.13,151.07,6.7989621]
[1726826965149,6.6169,151.13,151.08,6.6188]
[1726826965445,6.6165,151.14,151.1,6.1506]
[1726826966522,0.37647,151.13,151.1,6.1506]
[1726826966832,6.74239,151.13,151.1,6.1506]
[1726826968740,0.25098,151.12,151.1,6.1506]
[1726826971333,6.86828,151.12,151.1,6.1506]
[1726826972047,0.12549,151.11,151.1,6.1506]
[1726826980454,0.12549,151.11,151.09,16.5041]
[1726826981344,0.12549,151.09,151.07,0.1798621]
[1726826981955,30.772354,151.08,151.07,0.1798621]
[1726826988357,49.6401,151.09,151.01,0.2590624]
[1726826988358,6.99807,151.02,151.01,0.2590624]
[1726826989072,0.37647,151.02,151.01,0.2590624]
[1726826992464,6.99807,151.02,151.01,0.2590624]
[1726826993742,0.37647,151.02,151.01,0.2590624]
[1726826993942,0.25098,151.02,151.01,0.2590624]
[1726826994544,0.37647,151.02,151.01,0.2590624]
[1726826994844,6.99807,151.02,151.01,0.2590624]
[1726826995044,30.774954,151.02,151.01,0.2590624]
[1726826998245,6.99807,151.02,151.01,0.2590624]
[1726826998847,0.37647,151.02,151.01,0.2590624]
[1726826999047,0.12549,151.02,151.01,0.2590624]
[1726826999773,6.74709,151.02,151.01,0.2590624]
[1726826999951,0.12549,151.02,151.01,0.2590624]
[1726827000347,16.5461,151.1,151.01,0.2590624]
[1726827000651,98.6730208,151.13,151.01,0.2590624]
[1726827000652,16.5425,151.13,151.03,15.3462]
[1726827000857,6.6187,151.09,151.04,7.94434372]
[1726827001049,6.6187,151.09,151.05,6.5552]
[1726827001246,6.6187,151.09,151.05,7.87913322]
[1726827001670,6.6187,151.09,151.05,6.5552]
[1726827002661,6.6196,151.07,151.05,6.5552]
[1726827003168,0.12549,151.07,151.05,6.5552]
[1726827007871,0.25098,151.08,151.05,13.1754]
[1726827008074,6.6177,151.11,151.06,6.6198]
[1726827008369,6.6181,151.1,151.05,6.5552]
[1726827009057,6.6164,151.14,151.09,6.6182]
[1726827009257,7.9181,151.16,151.05,6.5552]
[1726827009258,6.6168,151.13,151.08,23.1655]
[1726827009477,0.12549,151.12,151.08,23.1655]
[1726827010574,0.25098,151.12,151.08,23.1655]
[1726827010765,0.25098,151.12,151.09,15.5017]
[1726827011577,0.12549,151.11,151.09,22.1202]
[1726827011776,0.12549,151.11,151.09,15.5017]
[1726827012566,6.6159,151.15,151.1,16.5447]
[1726827012768,6.6159,151.15,151.11,6.2993]
[1726827012962,0.2590624,151.17,151.11,6.2993]
[1726827012963,6.6164,151.14,151.11,6.2993]
[1726827013954,0.37647,151.13,151.11,6.2993]
[1726827014157,6.99327,151.13,151.11,6.2993]
[1726827014760,6.99367,151.12,151.11,6.2993]
[1726827015079,0.37647,151.12,151.11,6.2993]
[1726827018583,6.99367,151.12,151.11,6.2993]
[1726827018762,0.37647,151.09,151.07,6.6433]
[1726827019085,6.99547,151.08,151.07,6.6433]
[1726827019981,0.37647,151.08,151.07,6.6433]
[1726827020375,6.99547,151.08,151.07,6.6433]
[1726827023775,0.12549,151.04,151.03,6.4795]
[1726827024479,0.37647,151.04,151.03,6.4795]
[1726827025084,6.99717,151.04,151.03,6.4795]
[1726827025270,0.12549,151.04,151.03,6.4795]
[1726827026065,6.6188,151.09,151.04,6.6206]
[1726827027067,6.619,151.08,151.04,23.1717]
[1726827027269,0.12549,151.07,151.04,23.1717]
[1726827027888,6.74509,151.07,151.03,13.1006]
[1726827028095,0.25098,151.06,151.03,13.1006]
[1726827029087,0.25098,151.06,151.03,10.68399416]
[1726827030789,0.12549,151.07,151.05,23.171]
[1726827030998,6.6181,151.11,151.06,6.6198]
[1726827031170,16.5423,151.13,151.06,6.6198]
[1726827031171,6.6184,151.1,151.06,6.6198]
[1726827032491,0.25098,151.1,151.07,6.6193]
[1726827032693,0.12549,151.1,151.08,6.6189]
[1726827032994,6.6172,151.12,151.07,38.7892]
[1726827033290,6.6172,151.12,151.07,32.17]
[1726827033486,6.6172,151.12,151.08,6.6188]
[1726827034283,0.12549,151.11,151.08,6.6188]
[1726827034974,0.25098,151.11,151.08,6.6188]
[1726827037576,0.12549,151.1,151.07,32.17]
[1726827037778,0.12549,151.09,151.07,32.17]
[1726827038286,0.12549,151.09,151.07,38.7894]
[1726827045082,0.25098,151.1,151.08,7.9426994]
[1726827046190,0.25098,151.1,151.08,6.619]
[1726827046387,0.25098,151.1,151.07,38.7892]
[1726827047785,0.25098,151.09,151.04,16.551]
[1726827047993,0.12549,151.08,151.04,16.551]
[1726827048186,0.12549,151.07,151.04,23.1716]
[1726827048788,0.12549,151.07,151.04,16.551]
[1726827048789,6.87038,151.07,151.04,16.551]
[1726827048994,0.12549,151.05,151.03,20.14089416]
[1726827051509,0.37647,151.07,151.04,1.32406691]
[1726827051710,0.37647,151.07,151.05,7.94420665]
[1726827052212,7.9181,151.12,151.05,7.94420665]
[1726827052213,6.6183,151.1,151.06,6.6196]
[1726827052692,6.6178,151.11,151.07,6.6193]
[1726827053017,6.6182,151.1,151.05,16.55]
[1726827053511,0.37647,151.09,151.06,6.6197]
[1726827055300,6.99507,151.09,151.05,23.1701]
[1726827056199,0.12549,151.07,151.05,16.55]
[1726827056404,0.37647,151.07,151.04,6.6205]
[1726827057323,6.99587,151.07,151.04,6.6205]
[1726827057504,0.37647,151.07,151.04,6.6205]
[1726827059405,0.25098,151.08,151.05,7.94412647]
[1726827059604,0.12549,151.08,151.06,6.6197]
[1726827059808,16.5428,151.13,151.06,16.5495]
[1726827060507,6.6178,151.11,151.07,6.6194]
[1726827060904,0.37647,151.1,151.07,6.6194]
[1726827061404,0.37647,151.1,151.06,23.1692]
[1726827062007,6.99467,151.1,151.06,23.1692]
[1726827062208,6.6187,151.09,151.03,36.69299416]
[1726827062424,6.99547,151.08,151.04,6.6206]
[1726827065116,6.99547,151.08,151.01,0.2590624]
[1726827065117,0.37647,151.05,151.01,0.2590624]
[1726827065431,0.37647,151.03,151.01,0.2590624]
[1726827065619,6.99767,151.03,151.01,0.2590624]
[1726827068638,0.37647,151.03,151.01,0.2590624]
[1726827068832,16.5477,151.08,151.03,6.6211]
[1726827068833,6.6193,151.08,151.03,6.6211]
[1726827069041,7.9181,151.1,151.03,6.6211]
[1726827069226,6.6195,151.07,151.02,6.6215]
[1726827069427,6.6201,151.06,151.01,23.4357624]
[1726827069745,6.6201,151.06,151.02,6.6215]
[1726827070320,0.37647,151.05,151.01,23.4357624]
[1726827071623,0.37647,151.05,151.02,6.6213]
[1726827071933,0.37647,151.05,151.01,16.8138624]
[1726827072729,0.37647,151.05,151.02,6.6215]
[1726827074745,16.5446,151.11,151.03,17.87644582]
[1726827075071,28.05005641,151.13,151.01,33.3675624]
[1726827075345,6.6172,151.13,151.09,6.6185]
[1726827075519,0.2590624,151.17,151.1,1.32350299]
[1726827075721,0.2590624,151.17,151.11,16.5439]
[1726827075942,6.6158,151.16,151.11,23.1612]
[1726827076337,6.6159,151.15,151.11,16.5439]
[1726827076554,6.6164,151.14,151.1,6.618]
[1726827076922,6.6159,151.15,151.1,6.618]
[1726827077123,6.6164,151.14,151.1,6.618]
[1726827078249,0.25098,151.16,151.1,16.5448]
[1726827078564,6.86648,151.16,151.11,6.6175]
[1726827079150,6.616,151.15,151.11,6.6175]
[1726827079830,0.12549,151.14,151.11,6.6175]
[1726827080527,6.99297,151.14,151.1,23.1628]
[1726827080948,0.25098,151.13,151.1,16.5448]
[1726827081150,0.25098,151.11,151.07,16.5482]
[1726827081527,0.25098,151.11,151.07,23.1675]
[1726827082256,6.86878,151.11,151.07,23.1675]
[1726827082422,0.25098,151.11,151.07,23.1675]
[1726827084261,0.25098,151.11,151.08,6.6189]
[1726827084441,0.12549,151.12,151.09,6.6185]
[1726827084826,6.74269,151.12,151.08,6.6189]
[1726827086248,0.25098,151.11,151.07,16.5482]
[1726827086452,0.25098,151.09,151.07,16.5482]
[1726827086653,6.86958,151.09,151.05,28.9084]
[1726827086854,6.87008,151.08,151.05,22.2882]
[1726827087057,6.87008,151.08,151.05,16.1679]
[1726827087743,6.74499,151.07,151.04,16.5513]
[1726827088052,6.87088,151.06,151.02,6.6215]
[1726827089244,0.25098,151.06,151.03,6.6211]
[1726827089654,0.12549,151.07,151.04,6.6204]
[1726827091346,0.25098,151.06,151.03,23.1737]
[1726827092036,0.25098,151.06,151.04,1.32400424]
[1726827093361,0.25098,151.1,151.05,16.5506]
[1726827093555,0.12549,151.09,151.06,6.6198]
[1726827094460,0.12549,151.08,151.05,23.1707]
[1726827095442,0.12549,151.08,151.06,1.32380908]
[1726827096061,0.12549,151.08,151.05,23.1707]
[1726827096766,7.9181,151.07,151.01,0.2590624]
[1726827096934,24.153354,151.06,151.01,0.2590624]
[1726827097139,6.6213,151.03,151.01,0.2590624]
[1726827097337,0.12549,151.06,151.01,6.8806624]
[1726827097547,0.12549,151.04,151.01,6.8806624]
[1726827098238,0.12549,151.04,151.01,0.2590624]
[1726827099141,0.12549,151.04,151.01,6.8809624]
[1726827100757,16.5472,151.09,151.01,0.2590624]
[1726827100967,0.37647,151.08,151.01,0.2590624]
[1726827101339,6.6199,151.06,151.02,6.6213]
[1726827101836,0.37647,151.08,151.03,6.6211]
[1726827102174,0.37647,151.08,151.02,38.2538]
[1726827102336,0.25098,151.08,151.02,38.2538]
[1726827103263,6.87028,151.08,151.04,6.6207]
[1726827103965,0.12549,151.07,151.04,6.6207]
[1726827105038,6.89760266,151.14,151.05,1.32388992]
[1726827105265,6.6177,151.11,151.07,6.6194]